fUSD/lending_fUSD_20260201
["ID","MTS","AMOUNT","RATE_DAILY","PERIOD"]
[404217122,1769970139984,-150.0,0.00048694,30]
[404217123,1769970140045,-150.0,0.00048694,30]
[404217124,1769970140108,-150.0,0.0004876,30]
[404217125,1769970140166,-500.0,0.00048767,120]
[404217126,1769970140227,-500.0,0.00048767,120]
[404217127,1769970140289,-500.0,0.00048767,120]
[404217128,1769970140349,-500.0,0.00048767,120]
[404217129,1769970140408,-500.0,0.00048767,120]
[404217130,1769970140465,-500.0,0.00048767,120]
[404217131,1769970140522,-500.0,0.00048767,120]
[404217132,1769970140579,-500.0,0.00048767,120]
[404217133,1769970140636,-500.0,0.00048767,120]
[404217134,1769970140696,-271.09978646,0.00048767,120]
[404217135,1769970140756,-152.0,0.000488,120]
[404217136,1769970140815,-150.0,0.00048816,30]
[404217137,1769970140877,-609.55,0.0004884,120]
[404217138,1769970140940,-381.08903278,0.00048849,30]
[404217139,1769970141001,-150.0,0.00048911,30]
[404217140,1769970141060,-150.0,0.00048923,30]
[404217141,1769970141120,-150.0,0.00048923,30]
[404217142,1769970141179,-211.0,0.0004899,30]
[404217143,1769970141238,-173.47576183,0.00049,120]
[404217144,1769970141296,-249.40987671,0.00049,120]
[404217145,1769970141355,-193.91078058,0.00049,120]
[404217146,1769970141412,-200.0,0.00049,60]
[404217147,1769970141471,-150.0,0.00049025,30]
[404217148,1769970141529,-150.0,0.00049025,30]
[404217149,1769970141754,-150.0,0.00049025,30]
[404217150,1769970141814,-381.08903278,0.00049041,30]
[404217151,1769970141874,-152.43561311,0.00049041,30]
[404217152,1769970141935,-150.0,0.00049063,30]
[404217153,1769970141995,-150.0,0.00049095,30]
[404217154,1769970142059,-153.0,0.000491,120]
[404217155,1769970142125,-150.0,0.00049156,120]
[404217156,1769970142185,-150.0,0.00049214,30]
[404217157,1769970142248,-500.0,0.00049221,30]
[404217158,1769970142306,-500.0,0.00049221,30]
[404217159,1769970142368,-785.56,0.00049221,30]
[404217160,1769970142429,-609.55,0.00049248,120]
[404217161,1769970142489,-863.09112424,0.00049315,120]
[404217162,1769970142548,-800.0,0.00049315,34]
[404217163,1769970142608,-150.0,0.00049331,30]
[404217164,1769970142669,-150.0,0.00049331,30]
[404217165,1769970142729,-1000.0,0.00049338,30]
[404217166,1769970142791,-269.58504707,0.00049351,120]
[404217167,1769970142852,-150.0,0.00049356,30]
[404217168,1769970142911,-150.0,0.00049356,30]
[404217169,1769970142969,-150.0,0.00049366,30]
[404217170,1769970143035,-150.0,0.00049374,30]
[404217171,1769970143102,-150.0,0.00049467,30]
[404217172,1769970143164,-150.0,0.00049467,30]
[404217173,1769970143228,-150.0,0.00049467,30]
[404217174,1769970143291,-500.0,0.00049495,60]
[404217175,1769970143351,-503.0,0.000495,31]
[404217176,1769970143414,-150.0,0.00049517,30]
[404217177,1769970143475,-232.51,0.00049613,120]
[404217178,1769970143539,-150.0,0.00049653,30]
[404217179,1769970143602,-609.55,0.00049656,120]
[404217180,1769970143665,-150.0,0.00049669,30]
[404217181,1769970143727,-150.0,0.00049688,30]
[404217182,1769970143791,-150.0,0.00049688,30]
[404217183,1769970143853,-152.0,0.000497,120]
[404217184,1769970143915,-150.0,0.00049738,30]
[404217185,1769970143980,-150.0,0.00049738,30]
[404217186,1769970144044,-500.0,0.00049769,60]
[404217187,1769970144107,-993.12244462,0.00049799,120]
[404217188,1769970144169,-153.0,0.000498,120]
[404217189,1769970144233,-150.0,0.0004982,30]
[404217190,1769970144297,-200.0,0.00049878,120]
[404217191,1769970144357,-150.0,0.00049908,30]
[404217192,1769970144417,-150.0,0.00049932,30]
[404217193,1769970144475,-150.0,0.00049971,30]
[404217194,1769970144536,-1000.0,0.00049984,30]
[404217195,1769970144597,-50000.0,0.0005,50]
[404217196,1769970144657,-150.0,0.0005,40]
[404217197,1769970144714,-2096.15799352,0.0005,120]
[404217198,1769970144774,-599.99999901,0.0005,120]
[404217199,1769970144835,-903.47801379,0.0005,120]
[404217200,1769970144896,-1000.0,0.0005,120]
[404217201,1769970144959,-200.0,0.0005,60]
[404217202,1769970145019,-2340.11,0.0005,120]
[404217203,1769970145079,-150.0,0.00050019,30]
[404217204,1769970145137,-150.0,0.00050019,30]
[404217205,1769970145195,-500.0,0.00050043,60]
[404217206,1769970145255,-609.55,0.00050064,120]
[404217207,1769970145312,-150.0,0.00050123,30]
[404217208,1769970145369,-150.0,0.00050146,30]
[404217209,1769970145425,-150.0,0.00050146,30]
[404217210,1769970145480,-150.0,0.00050211,30]
[404217211,1769970145540,-150.0,0.00050274,30]
[404217212,1769970145595,-500.0,0.00050317,60]
[404217213,1769970145653,-183.17,0.00050342,120]
[404217214,1769970145709,-150.0,0.0005035,30]
[404217215,1769970145766,-150.0,0.0005035,30]
[404217216,1769970145823,-150.0,0.0005035,30]
[404217217,1769970145881,-150.0,0.00050426,30]
[404217218,1769970145941,-503.0,0.00050453,31]
[404217219,1769970146000,-609.55,0.00050472,120]
[404217220,1769970146059,-150.0,0.00050489,30]
[404217221,1769970146114,-249.40987671,0.000505,120]
[404217222,1769970146171,-193.91078058,0.000505,120]
[404217223,1769970146227,-1217.1567666,0.000505,60]
[404217224,1769970146285,-150.0,0.00050551,120]
[404217225,1769970146341,-1500.0,0.00050552,120]
[404217226,1769970146397,-1500.0,0.00050552,120]
[404217227,1769970146453,-1500.0,0.00050552,120]
[404217228,1769970146508,-1500.0,0.00050552,120]
[404217229,1769970146564,-1500.0,0.00050552,120]
[404217230,1769970146619,-1500.0,0.00050552,120]
[404217231,1769970146676,-150.0,0.00050554,30]
[404217232,1769970146734,-150.0,0.00050554,30]
[404217233,1769970146795,-150.0,0.00050577,30]
[404217234,1769970146858,-500.0,0.00050591,60]
[404217235,1769970146917,-152.0,0.000506,120]
[404217236,1769970146974,-153.0,0.000506,120]
[404217237,1769970147039,-150.0,0.00050681,30]
[404217238,1769970147100,-150.0,0.00050681,30]
[404217239,1769970147159,-176.26232049,0.00050693,30]
[404217240,1769970147218,-150.0,0.00050729,30]
[404217241,1769970147274,-150.0,0.00050768,30]
[404217242,1769970147333,-150.0,0.00050792,30]
[404217243,1769970147549,-1103.0,0.00050825,30]
[404217244,1769970147613,-1103.0,0.00050825,30]
[404217245,1769970147672,-500.0,0.00050865,60]
[404217246,1769970147729,-609.55,0.0005088,120]
[404217247,1769970147788,-150.0,0.0005088,30]
[404217248,1769970147850,-1000.0,0.00050951,30]
[404217249,1769970147907,-150.0,0.00050962,30]
[404217250,1769970147964,-150.0,0.00050962,30]
[404217251,1769970148027,-150.0,0.00051,40]
[404217252,1769970148085,-379.47,0.00051,30]
[404217253,1769970148142,-1000.0,0.00051,120]
[404217254,1769970148199,-200.0,0.00051,60]
[404217255,1769970148258,-150.0,0.00051012,30]
[404217256,1769970148316,-150.0,0.00051012,30]
[404217257,1769970148379,-150.0,0.00051031,30]
[404217258,1769970148436,-150.0,0.00051047,30]
[404217259,1769970148493,-150.0,0.00051083,120]
[404217260,1769970148550,-151.0,0.00051095,60]
[404217261,1769970148608,-204.24338911,0.00051095,60]
[404217262,1769970148665,-500.0,0.00051139,60]
[404217263,1769970148723,-151.0,0.00051148,32]
[404217264,1769970148781,-250.0,0.00051148,32]
[404217265,1769970148842,-150.0,0.00051183,30]
[404217266,1769970148901,-150.0,0.00051233,30]
[404217267,1769970148958,-150.0,0.00051233,30]
[404217268,1769970149017,-150.0,0.00051233,30]
[404217269,1769970149074,-609.55,0.00051287,120]
[404217270,1769970149127,-150.0,0.00051295,120]
[404217271,1769970149183,-153.0,0.000513,120]
[404217272,1769970149240,-150.0,0.00051326,30]
[404217273,1769970149300,-150.0,0.00051334,30]
[404217274,1769970149356,-150.0,0.00051344,30]
[404217275,1769970149415,-150.0,0.00051344,30]
[404217276,1769970149475,-500.0,0.00051356,60]
[404217277,1769970149534,-700.0,0.00051356,60]
[404217278,1769970149592,-500.0,0.00051356,60]
[404217279,1769970149649,-150.0,0.00051369,30]
[404217280,1769970149707,-150.0,0.00051369,30]
[404217281,1769970149770,-503.0,0.00051406,32]
[404217282,1769970149829,-500.0,0.00051413,60]
[404217283,1769970149887,-151.0,0.00051434,60]
[404217284,1769970149946,-267.46074303,0.00051434,60]
[404217285,1769970150008,-250.0,0.00051434,60]
[404217286,1769970150079,-151.0,0.00051435,60]
[404217287,1769970150138,-257.91778498,0.00051435,60]
[404217288,1769970150194,-250.0,0.00051435,60]
[404217289,1769970150254,-1000.0,0.00051443,30]
[404217290,1769970150310,-150.0,0.00051486,30]
[404217291,1769970150363,-151.0,0.00051499,35]
[404217292,1769970150416,-151.0,0.00051499,120]
[404217293,1769970150468,-248.71531821,0.00051499,35]
[404217294,1769970150520,-250.0,0.00051499,35]
[404217295,1769970150575,-250.0,0.00051499,120]
[404217296,1769970150634,-982.0,0.000515,120]
[404217297,1769970150691,-982.0,0.000515,120]
[404217298,1769970150762,-982.0,0.000515,120]
[404217299,1769970150824,-982.0,0.000515,120]
[404217300,1769970150883,-982.0,0.000515,120]
[404217301,1769970150939,-982.0,0.000515,120]
[404217302,1769970150997,-982.0,0.000515,120]
[404217303,1769970151052,-193.44368948,0.000515,120]
[404217304,1769970151110,-152.0,0.000515,120]
[404217305,1769970151164,-151.0,0.00051579,100]
[404217306,1769970151219,-250.0,0.00051579,100]
[404217307,1769970151275,-150.0,0.00051605,30]
[404217308,1769970151329,-150.0,0.00051637,30]
[404217309,1769970151383,-151.0,0.00051649,72]
[404217310,1769970151438,-250.0,0.00051649,72]
[404217311,1769970151497,-2075.0,0.0005165,72]
[404217312,1769970151553,-150.0,0.00051675,30]
[404217313,1769970151612,-150.0,0.00051675,30]
[404217314,1769970151669,-150.0,0.00051675,30]
[404217315,1769970151725,-500.0,0.00051687,60]
[404217316,1769970151785,-609.55,0.00051695,120]
[404217317,1769970151843,-160.79335764,0.00051747,120]
[404217318,1769970151902,-200.0,0.00051754,120]
[404217319,1769970151961,-150.0,0.00051777,30]
[404217320,1769970152018,-150.0,0.00051777,30]
[404217321,1769970152077,-150.0,0.00051789,30]
[404217322,1769970152134,-151.0,0.00051799,115]
[404217323,1769970152190,-250.0,0.00051799,115]
[404217324,1769970152249,-150.0,0.00051884,30]
[404217325,1769970152305,-1825.55,0.000519,120]
[404217326,1769970152362,-700.0,0.00051904,60]
[404217327,1769970152417,-500.0,0.00051904,60]
[404217328,1769970152472,-150.0,0.0005194,30]
[404217329,1769970152529,-500.0,0.00051961,60]
[404217330,1769970152588,-151.0,0.00051979,110]
[404217331,1769970152646,-355.41608117,0.00051979,110]
[404217332,1769970152705,-250.0,0.00051979,110]
[404217333,1769970152763,-500.0,0.00051999,35]
[404217334,1769970152820,-250.0,0.00051999,35]
[404217335,1769970152880,-151.0,0.00051999,35]
[404217336,1769970152936,-250.0,0.00051999,40]
[404217337,1769970152996,-500.0,0.00051999,40]
[404217338,1769970153282,-250.0,0.00051999,35]
[404217339,1769970153341,-670.58624095,0.00051999,35]
[404217340,1769970153399,-151.0,0.00051999,40]
[404217341,1769970153458,-194.72792766,0.00051999,35]
[404217342,1769970153516,-695.39793187,0.00051999,40]
[404217343,1769970153572,-250.0,0.00051999,40]
[404217344,1769970153626,-151.0,0.00051999,90]
[404217345,1769970153680,-201.93286099,0.00051999,40]
[404217346,1769970153738,-500.0,0.00051999,35]
[404217347,1769970153797,-500.0,0.00051999,40]
[404217348,1769970153852,-151.0,0.00051999,35]
[404217349,1769970153907,-600.0,0.00051999,35]
[404217350,1769970153962,-151.0,0.00051999,40]
[404217351,1769970154016,-600.0,0.00051999,40]
[404217352,1769970154070,-600.0,0.00051999,90]
[404217353,1769970154125,-500.0,0.00051999,35]
[404217354,1769970154180,-500.0,0.00051999,40]
[404217355,1769970154234,-500.0,0.00051999,35]
[404217356,1769970154290,-151.0,0.00051999,35]
[404217357,1769970154345,-500.0,0.00051999,40]
[404217358,1769970154401,-151.0,0.00051999,40]
[404217359,1769970154455,-250.0,0.00051999,35]
[404217360,1769970154508,-500.0,0.00051999,35]
[404217361,1769970154563,-500.0,0.00051999,40]
[404217362,1769970154617,-250.0,0.00051999,40]
[404217363,1769970154670,-1328.27659266,0.00051999,35]
[404217364,1769970154725,-250.0,0.00051999,90]
[404217365,1769970154782,-1377.42282659,0.00051999,40]
[404217366,1769970154838,-220.0,0.00051999,35]
[404217367,1769970154894,-220.0,0.00051999,40]
[404217368,1769970154952,-293.84329418,0.00051999,90]
[404217369,1769970155010,-231.28369723,0.00051999,35]
[404217370,1769970155068,-239.84119403,0.00051999,40]
[404217371,1769970155126,-250.0,0.00051999,35]
[404217372,1769970155185,-250.0,0.00051999,40]
[404217373,1769970155244,-250.0,0.00051999,35]
[404217374,1769970155302,-500.0,0.00051999,35]
[404217375,1769970155358,-250.0,0.00051999,40]
[404217376,1769970155413,-500.0,0.00051999,40]
[404217377,1769970155466,-194.72792766,0.00051999,35]
[404217378,1769970155521,-201.93286099,0.00051999,40]
[404217379,1769970155577,-500.0,0.00051999,35]
[404217380,1769970155636,-500.0,0.00051999,40]
[404217381,1769970155690,-160.0,0.00051999,35]
[404217382,1769970155746,-250.0,0.00051999,35]
[404217383,1769970155802,-160.0,0.00051999,40]
[404217384,1769970155856,-250.0,0.00051999,40]
[404217385,1769970155910,-250.0,0.00051999,90]
[404217386,1769970155963,-500.0,0.00051999,35]
[404217387,1769970156024,-799.54513345,0.00051999,35]
[404217388,1769970156078,-500.0,0.00051999,40]
[404217389,1769970156132,-829.12830338,0.00051999,40]
[404217390,1769970156188,-500.0,0.00051999,35]
[404217391,1769970156247,-500.0,0.00051999,40]
[404217392,1769970156300,-194.72792766,0.00051999,35]
[404217393,1769970156356,-201.93286099,0.00051999,40]
[404217394,1769970156410,-249.40987671,0.00052,120]
[404217395,1769970156464,-200.0,0.00052,40]
[404217396,1769970156524,-1000.0,0.00052,120]
[404217397,1769970156583,-500.0,0.00052,120]
[404217398,1769970156638,-500.0,0.00052,120]
[404217399,1769970156692,-500.0,0.00052,120]
[404217400,1769970156754,-500.0,0.00052,120]
[404217401,1769970156809,-500.0,0.00052,120]
[404217402,1769970156864,-500.0,0.00052,120]
[404217403,1769970156922,-500.0,0.00052,120]
[404217404,1769970156980,-500.0,0.00052,120]
[404217405,1769970157039,-500.0,0.00052,120]
[404217406,1769970157095,-500.0,0.00052,120]
[404217407,1769970157149,-500.0,0.00052,120]
[404217408,1769970157204,-500.0,0.00052,120]
[404217409,1769970157259,-500.0,0.00052,120]
[404217410,1769970157314,-500.0,0.00052,120]
[404217411,1769970157367,-500.0,0.00052,120]
[404217412,1769970157420,-500.0,0.00052,120]
[404217413,1769970157473,-500.0,0.00052,120]
[404217414,1769970157527,-500.0,0.00052,120]
[404217415,1769970157582,-500.0,0.00052,120]
[404217416,1769970157635,-500.0,0.00052,120]
[404217417,1769970157687,-500.0,0.00052,120]
[404217418,1769970157741,-500.0,0.00052,120]
[404217419,1769970157796,-500.0,0.00052,120]
[404217420,1769970157850,-500.0,0.00052,120]
[404217421,1769970157903,-500.0,0.00052,120]
[404217422,1769970157956,-500.0,0.00052,120]
[404217423,1769970158008,-500.0,0.00052,120]
[404217424,1769970158063,-500.0,0.00052,120]
[404217425,1769970158119,-500.0,0.00052,120]
[404217426,1769970158171,-500.0,0.00052,120]
[404217427,1769970158225,-500.0,0.00052,120]
[404217428,1769970158281,-500.0,0.00052,120]
[404217429,1769970158336,-500.0,0.00052,120]
[404217430,1769970158389,-500.0,0.00052,120]
[404217431,1769970158442,-500.0,0.00052,120]
[404217432,1769970158496,-500.0,0.00052,120]
[404217433,1769970158734,-500.0,0.00052,120]
[404217434,1769970158794,-500.0,0.00052,120]
[404217435,1769970158851,-500.0,0.00052,120]
[404217436,1769970158909,-500.0,0.00052,120]
[404217437,1769970158966,-500.0,0.00052,120]
[404217438,1769970159027,-500.0,0.00052,120]
[404217439,1769970159083,-500.0,0.00052,120]
[404217440,1769970159141,-500.0,0.00052,120]
[404217441,1769970159198,-500.0,0.00052,120]
[404217442,1769970159258,-500.0,0.00052,120]
[404217443,1769970159312,-500.0,0.00052,120]
[404217444,1769970159367,-500.0,0.00052,120]
[404217445,1769970159422,-500.0,0.00052,120]
[404217446,1769970159478,-500.0,0.00052,120]
[404217447,1769970159533,-500.0,0.00052,120]
[404217448,1769970159591,-500.0,0.00052,120]
[404217449,1769970159648,-500.0,0.00052,120]
[404217450,1769970159707,-500.0,0.00052,120]
[404217451,1769970159763,-500.0,0.00052,120]
[404217452,1769970159821,-500.0,0.00052,120]
[404217453,1769970159878,-500.0,0.00052,120]
[404217454,1769970159935,-500.0,0.00052,120]
[404217455,1769970159990,-500.0,0.00052,120]
[404217456,1769970160049,-500.0,0.00052,120]
[404217457,1769970160107,-500.0,0.00052,120]
[404217458,1769970160164,-500.0,0.00052,120]
[404217459,1769970160221,-500.0,0.00052,120]
[404217460,1769970160275,-500.0,0.00052,120]
[404217461,1769970160328,-500.0,0.00052,120]
[404217462,1769970160379,-500.0,0.00052,120]
[404217463,1769970160430,-500.0,0.00052,120]
[404217464,1769970160482,-500.0,0.00052,120]
[404217465,1769970160535,-500.0,0.00052,120]
[404217466,1769970160590,-500.0,0.00052,120]
[404217467,1769970160647,-333.43,0.00052,120]
[404217468,1769970160705,-500.0,0.00052,120]
[404217469,1769970160762,-500.0,0.00052,120]
[404217470,1769970160818,-500.0,0.00052,120]
[404217471,1769970160874,-500.0,0.00052,120]
[404217472,1769970160930,-500.0,0.00052,120]
[404217473,1769970160987,-500.0,0.00052,120]
[404217474,1769970161043,-500.0,0.00052,120]
[404217475,1769970161101,-500.0,0.00052,120]
[404217476,1769970161158,-500.0,0.00052,120]
[404217477,1769970161216,-500.0,0.00052,120]
[404217478,1769970161274,-500.0,0.00052,120]
[404217479,1769970161331,-500.0,0.00052,120]
[404217480,1769970161387,-500.0,0.00052,120]
[404217481,1769970161442,-500.0,0.00052,120]
[404217482,1769970161498,-500.0,0.00052,120]
[404217483,1769970161557,-500.0,0.00052,120]
[404217484,1769970161615,-500.0,0.00052,120]
[404217485,1769970161671,-500.0,0.00052,120]
[404217486,1769970161729,-500.0,0.00052,120]
[404217487,1769970161797,-150.37,0.00052,120]
[404217488,1769970161855,-500.0,0.00052,120]
[404217489,1769970161913,-500.0,0.00052,120]
[404217490,1769970161968,-200.0,0.00052,60]
[404217491,1769970162029,-150.0,0.00052,120]
[404217492,1769970162084,-150.0,0.00052006,30]
[404217493,1769970162140,-150.0,0.00052006,30]
[404217494,1769970162196,-563.36150098,0.00052054,120]
[404217495,1769970162252,-1000.0,0.00052054,120]
[404217496,1769970162308,-150.0,0.00052091,30]
[404217497,1769970162363,-232.51,0.00052093,120]
[404217498,1769970162419,-153.0,0.000521,120]
[404217499,1769970162475,-609.55,0.00052103,120]
[404217500,1769970162534,-500.0,0.00052113,33]
[404217501,1769970162589,-250.0,0.00052113,33]
[404217502,1769970162644,-151.0,0.00052113,33]
[404217503,1769970162698,-250.0,0.00052113,33]
[404217504,1769970162753,-646.65982734,0.00052113,33]
[404217505,1769970162809,-187.78006525,0.00052113,33]
[404217506,1769970162867,-500.0,0.00052113,33]
[404217507,1769970162923,-151.0,0.00052113,33]
[404217508,1769970162979,-600.0,0.00052113,33]
[404217509,1769970163039,-500.0,0.00052113,33]
[404217510,1769970163095,-500.0,0.00052113,33]
[404217511,1769970163151,-151.0,0.00052113,33]
[404217512,1769970163209,-220.0,0.00052113,33]
[404217513,1769970163265,-250.0,0.00052113,33]
[404217514,1769970163316,-500.0,0.00052113,33]
[404217515,1769970163367,-1280.88388878,0.00052113,33]
[404217516,1769970163419,-223.0315306,0.00052113,33]
[404217517,1769970163469,-250.0,0.00052113,33]
[404217518,1769970163520,-250.0,0.00052113,33]
[404217519,1769970163573,-500.0,0.00052113,33]
[404217520,1769970163628,-187.78006525,0.00052113,33]
[404217521,1769970163682,-500.0,0.00052113,33]
[404217522,1769970163733,-160.0,0.00052113,33]
[404217523,1769970163786,-250.0,0.00052113,33]
[404217524,1769970163838,-500.0,0.00052113,33]
[404217525,1769970163889,-771.01748645,0.00052113,33]
[404217526,1769970163940,-500.0,0.00052113,33]
[404217527,1769970163999,-187.78006525,0.00052113,33]
[404217528,1769970164221,-150.0,0.00052117,30]
[404217529,1769970164276,-150.0,0.00052163,30]
[404217530,1769970164329,-150.0,0.00052185,30]
[404217531,1769970164385,-150.0,0.00052185,30]
[404217532,1769970164437,-150.0,0.00052243,30]
[404217533,1769970164489,-500.0,0.00052259,61]
[404217534,1769970164539,-250.0,0.00052259,61]
[404217535,1769970164590,-151.0,0.00052259,61]
[404217536,1769970164644,-250.0,0.00052259,61]
[404217537,1769970164697,-623.58710448,0.00052259,61]
[404217538,1769970164750,-181.08010149,0.00052259,61]
[404217539,1769970164802,-500.0,0.00052259,61]
[404217540,1769970164856,-151.0,0.00052259,61]
[404217541,1769970164913,-600.0,0.00052259,61]
[404217542,1769970164970,-500.0,0.00052259,61]
[404217543,1769970165032,-500.0,0.00052259,61]
[404217544,1769970165090,-151.0,0.00052259,61]
[404217545,1769970165146,-250.0,0.00052259,61]
[404217546,1769970165203,-220.0,0.00052259,61]
[404217547,1769970165261,-500.0,0.00052259,61]
[404217548,1769970165319,-1235.18214925,0.00052259,61]
[404217549,1769970165376,-250.0,0.00052259,61]
[404217550,1769970165430,-500.0,0.00052259,61]
[404217551,1769970165483,-250.0,0.00052259,61]
[404217552,1769970165538,-181.08010149,0.00052259,61]
[404217553,1769970165593,-500.0,0.00052259,61]
[404217554,1769970165645,-160.0,0.00052259,61]
[404217555,1769970165696,-250.0,0.00052259,61]
[404217556,1769970165752,-500.0,0.00052259,61]
[404217557,1769970165807,-743.50770149,0.00052259,61]
[404217558,1769970165860,-500.0,0.00052259,61]
[404217559,1769970165914,-181.08010149,0.00052259,61]
[404217560,1769970165968,-152.0,0.000523,120]
[404217561,1769970166025,-152.0,0.0005232,120]
[404217562,1769970166078,-150.0,0.00052338,30]
[404217563,1769970166131,-150.0,0.00052338,30]
[404217564,1769970166185,-503.0,0.00052359,33]
[404217565,1769970166237,-150.0,0.00052394,30]
[404217566,1769970166288,-500.0,0.0005243,120]
[404217567,1769970166339,-500.0,0.0005243,120]
[404217568,1769970166389,-500.0,0.0005243,120]
[404217569,1769970166439,-500.0,0.0005243,120]
[404217570,1769970166487,-500.0,0.0005243,120]
[404217571,1769970166536,-500.0,0.0005243,120]
[404217572,1769970166586,-500.0,0.0005243,120]
[404217573,1769970166638,-301.18603824,0.0005243,120]
[404217574,1769970166691,-150.0,0.00052431,120]
[404217575,1769970166747,-150.0,0.00052442,30]
[404217576,1769970166804,-500.0,0.00052452,60]
[404217577,1769970166859,-700.0,0.00052452,60]
[404217578,1769970166914,-500.0,0.00052452,60]
[404217579,1769970166969,-150.0,0.00052491,120]
[404217580,1769970167028,-500.0,0.000525,30]
[404217581,1769970167085,-609.55,0.00052511,120]
[404217582,1769970167143,-150.0,0.00052546,30]
[404217583,1769970167201,-150.0,0.00052558,30]
[404217584,1769970167257,-150.0,0.00052592,30]
[404217585,1769970167313,-150.0,0.00052592,30]
[404217586,1769970167370,-500.0,0.00052629,76]
[404217587,1769970167426,-250.0,0.00052629,76]
[404217588,1769970167480,-151.0,0.00052629,76]
[404217589,1769970167538,-250.0,0.00052629,76]
[404217590,1769970167600,-601.3376128,0.00052629,76]
[404217591,1769970167657,-174.61919141,0.00052629,76]
[404217592,1769970167720,-500.0,0.00052629,76]
[404217593,1769970167781,-151.0,0.00052629,76]
[404217594,1769970167839,-600.0,0.00052629,76]
[404217595,1769970167898,-500.0,0.00052629,76]
[404217596,1769970167956,-500.0,0.00052629,76]
[404217597,1769970168015,-151.0,0.00052629,76]
[404217598,1769970168072,-250.0,0.00052629,76]
[404217599,1769970168130,-220.0,0.00052629,76]
[404217600,1769970168190,-500.0,0.00052629,76]
[404217601,1769970168248,-1191.11104075,0.00052629,76]
[404217602,1769970168308,-250.0,0.00052629,76]
[404217603,1769970168366,-500.0,0.00052629,76]
[404217604,1769970168422,-250.0,0.00052629,76]
[404217605,1769970168478,-174.61919141,0.00052629,76]
[404217606,1769970168539,-500.0,0.00052629,76]
[404217607,1769970168597,-160.0,0.00052629,76]
[404217608,1769970168654,-250.0,0.00052629,76]
[404217609,1769970168710,-500.0,0.00052629,76]
[404217610,1769970168768,-716.97946142,0.00052629,76]
[404217611,1769970168826,-500.0,0.00052629,76]
[404217612,1769970168887,-174.61919141,0.00052629,76]
[404217613,1769970168948,-150.0,0.00052669,30]
[404217614,1769970169007,-150.0,0.00052669,30]
[404217615,1769970169070,-150.0,0.00052697,30]
[404217616,1769970169127,-500.0,0.000527,30]
[404217617,1769970169188,-150.0,0.00052721,30]
[404217618,1769970169247,-153.0,0.000528,120]
[404217619,1769970169305,-150.0,0.00052849,30]
[404217620,1769970169361,-150.0,0.00052856,120]
[404217621,1769970169416,-500.0,0.000529,30]